Cogmind - Beta 13 @@@ ROGUE MODE // 2024.04.04 @ 08:44:58 Player: Sarium Result: Destroyed by as-96860 with Assembled Blade Performance ------------- Evolutions (0) 0 Regions Visited (2) 400 Robots Destroyed (18) 90 Value Destroyed (440) 440 Prototype IDs (0) 0 Alien Tech Used (0) 0 Bonus (0) 0 TOTAL SCORE: 930 Bonus ------- None Cogmind --------- Core Integrity 0/250 Matter 300/300 Energy 65/100 System Corruption 0% Temperature Warm (112) Movement Rolling (180) Ox6 Location -10/Mines Parts ------- > --- POWER (1) -------- (None) > --- PROPULSION (2) --- Armored Wheel > --- UTILITY (2) ------ Huge Storage Unit > --- WEAPON (2) ------- Beam Rifle > --- INVENTORY (25) --- Light Ion Engine Light Ion Engine Grenade Launcher Peak State ------------ > --- POWER ------------ Light Ion Engine > --- PROPULSION ------- Armored Wheel Armored Wheel > --- UTILITY ---------- Medium Storage Unit Visual Processing Unit > --- WEAPON ----------- Beam Rifle Beam Rifle > --- INVENTORY -------- Light Ion Engine Armored Wheel Beam Rifle Beam Rifle Datajack [Rating: 12] Favorites ----------- Power Ion Engine Engine Ion Engine Propulsion Armored Wheel Leg Aluminum Leg Wheel Armored Wheel Flight Unit Flight Unit Utility Huge Storage Unit Device Sensor Array Storage Huge Storage Unit Processor Visual Processing Unit Weapon Beam Rifle Energy Gun Beam Rifle Ballistic Gun Assault Rifle Build | -11 -10 -10 ------- Run | Yrd Mat Min Slots Evolved . | . . . Power . | . . . Propulsion . | . . . Utility . | . . . Weapon . | . . . Parts Attached 25 | 7 14 4 Power 3 | 1 1 1 Engine 3 | 1 1 1 Core . | . . . Reactor . | . . . Propulsion 9 | 4 4 1 Treads . | . . . Leg 2 | 2 . . Wheel 6 | 2 3 1 Hover . | . . . Flight 1 | . 1 . Utility 4 | . 4 . Device 1 | . 1 . Storage 2 | . 2 . Processor 1 | . 1 . Hackware . | . . . Protection . | . . . Artifact . | . . . Weapon 9 | 2 5 2 Energy Gun 8 | 1 5 2 Energy Cannon . | . . . Ballistic Gun 1 | 1 . . Ballistic Cannon . | . . . Launcher . | . . . Special Weapon . | . . . Impact Weapon . | . . . Slashing Weapon . | . . . Piercing Weapon . | . . . Special Melee Weapon . | . . . Unidentified Prototypes . | . . . Parts Lost 8 | . . 8 Power 2 | . . 2 Propulsion 2 | . . 2 Utility 1 | . . 1 Weapon 3 | . . 3 Highest Loss Streak 5 | . . 5 To Critical Strikes . | . . . Average Slot Usage (%) 90 | . 91 83 Engine 13 | . 14 13 Wheel 27 | . 28 27 Device 8 | . 10 . Storage 10 | . 10 14 Energy Gun 27 | . 27 27 Naked Turns . | . . . Heaviest Build 92 | 7 92 89 Greatest Support 24 | 20 24 24 Greatest Overweight (x) 7 | . 3 7 Average Overweight (x) 1 | . 1 3 Largest Inventory Capacity 25 | 5 25 25 Average Capacity 19 | 5 19 25 Most Carried 8 | 4 8 6 Average Carried 5 | 1 5 3 Final Capacity 25 | 5 25 25 Final Carried 6 | 2 6 3 Class Distribution -------------------- 100% | Mutant Dominant Class ---------------- Mutant | -10/Materials Mutant | -10/Mines Resources | -11 -10 -10 ----------- Run | Yrd Mat Min Matter Collected 468 | 288 140 40 Remotely . | . . . Salvage Created 526 | 49 420 57 Parts 27 | 2 21 4 Haulers Intercepted . | . . . Recyclers Shooed . | . . . Parts Field Recycled . | . . . Retrieved Matter . | . . . Parts Self-Destructed . | . . . Prevented . | . . . Kills | -11 -10 -10 ------- Run | Yrd Mat Min Combat Hostiles Destroyed 15 | 1 11 3 Guns 14 | 1 10 3 Classes Destroyed 3 | 1 2 . Watcher 3 | . 3 . Swarmer 6 | . 3 3 Grunt 9 | 1 8 . Best Kill Streak 3 | 1 3 3 Combat Bots Only 3 | 1 3 3 Max Kills in Single Turn 1 | 1 1 1 Gunslinging . | . . . Exploded . | . . . Melee . | . . . Uniques/NPCs Destroyed . | . . . Combat | -11 -10 -10 -------- Run | Yrd Mat Min Hostile Shots Fired 112 | 11 54 47 Missed 25 | 3 14 8 Damage Taken 1108 | 89 426 593 Core 262 | 21 80 161 Absorbed by Shields . | . . . Core Remaining (%) 91 | 91 . . Volleys Fired 59 | 6 40 13 Largest 2 | 2 2 2 Hottest 112 | 60 112 112 Shots Fired 111 | 12 80 19 Gun 111 | 12 80 19 Cannon . | . . . Launcher . | . . . Special . | . . . Kinetic 6 | 6 . . Thermal 99 | . 80 19 Explosive . | . . . Electromagnetic 6 | 6 . . Robot Hit Streak 13 | 3 13 3 Robot Miss Streak 3 | 1 3 2 Penetration Max . | . . . Secondary Targets 1 | . 1 . Max Gunslinging Chain 1 | . 1 . Shots Hit Robots 65 | 7 51 7 Core Hits 26 | 1 21 4 Critical Kills . | . . . Critical Parts Destroyed . | . . . Critical Strikes 7 | . 6 1 Burn 7 | . 6 1 Melee Attacks . | . . . Impact . | . . . Slashing . | . . . Piercing . | . . . Sneak Attacks . | . . . Combat Hostiles . | . . . Follow-up Attacks . | . . . Damage Inflicted 991 | 105 768 118 Guns 991 | 105 768 118 Cannons . | . . . Explosions . | . . . Melee . | . . . Ramming . | . . . Kinetic 24 | 24 . . Thermal 886 | . 768 118 Explosive . | . . . Electromagnetic 81 | 81 . . Impact . | . . . Slashing . | . . . Piercing . | . . . Highest Corruption . | . . . Average Corruption . | . . . Corruption Purged . | . . . Corruption Blocked . | . . . Overload Shots . | . . . Overflow Damage . | . . . Projectiles . | . . . Explosions . | . . . Melee . | . . . Knockbacks . | . . . Impact . | . . . Kinetic . | . . . Secondary . | . . . Self-Inflicted Damage . | . . . Shots . | . . . Rammed . | . . . Targets Rammed . | . . . Kicked . | . . . Crushed . | . . . Highest Temperature 447 | 24 447 159 Average Temperature 151 | 11 174 83 Received Heat Transfer 256 | 48 168 40 Effects 4 | . 4 . Shutdowns 2 | . 2 . Interference 2 | . 2 . Siege Activations . | . . . Robots Corrupted . | . . . Combat Hostiles . | . . . Parts Fried . | . . . Impact Corruptions . | . . . Robots Melted 1 | . 1 . Combat Hostiles 1 | . 1 . Parts Melted 6 | . 6 . Heat Transferred 2775 | . 2405 370 Parts Sabotaged . | . . . Parts Stolen . | . . . Parts Stripped . | . . . Power Chain Reactions . | . . . Alert | -11 -10 -10 ------- Run | Yrd Mat Min Peak Influence 207 | 20 207 65 Initial 19 | . 13 19 Average 58 | 1 63 47 Maximum Alert Level 1 | . 1 . Low Security (%) 98 | 100 98 100 Level 1 1 | . 1 . Level 2 . | . . . Level 3 . | . . . Level 4 . | . . . Level 5 . | . . . High Security . | . . . Max Security . | . . . Squads Dispatched 3 | . 3 . Investigation 1 | . 1 . Extermination . | . . . Reinforcement 2 | . 2 . Assault . | . . . Garrison . | . . . Intercept . | . . . Searches Triggered . | . . . Construction Impeded . | . . . Haulers Reinforced . | . . . Active Scanning Responses . | . . . Cargo Convoy Interrupts . | . . . Stealth | -11 -10 -10 --------- Run | Yrd Mat Min Distress Signals . | . . . Communications Jammed . | . . . Distress Signals . | . . . Times Spotted 39 | 1 19 19 Peak Tracking Total 16 | 1 4 16 Tactical Retreats 1 | . 1 . Traps | -11 -10 -10 ------- Run | Yrd Mat Min Traps Triggered 4 | . 4 . Indirectly . | . . . Trap Hack Attempts . | . . . Triggered . | . . . Disarmed . | . . . Reprogrammed . | . . . Reused . | . . . Traps Extracted . | . . . Installed . | . . . Triggered . | . . . Machines | -11 -10 -10 ---------- Run | Yrd Mat Min Machines Disabled . | . . . Max in Single Turn . | . . . Machines Repaired . | . . . Machines Dismantled . | . . . Machines Sabotaged . | . . . Overloaded Fab Kills . | . . . Hacking | -11 -10 -10 --------- Run | Yrd Mat Min Machines Accessed 3 | . 3 . Terminals 3 | . 3 . Fabricators . | . . . Repair Stations . | . . . Recycling Units . | . . . Scanalyzers . | . . . Garrison Access . | . . . Total Hacks 5 | . 5 . Successful 5 | . 5 . Failed . | . . . Catastrophic . | . . . Database Lockouts . | . . . Manual . | . . . Terminals 5 | . 5 . Fabricators . | . . . Repair Stations . | . . . Recycling Units . | . . . Scanalyzers . | . . . Garrison Access . | . . . Terminal Hacks 5 | . 5 . Record 2 | . 2 . Alert Level 1 | . 1 . Hauler Manifests 1 | . 1 . Zone Layout 1 | . 1 . Fabricator Hacks . | . . . Repair Station Hacks . | . . . Recycling Unit Hacks . | . . . Scanalyzer . | . . . Garrison Access Hacks . | . . . Unauthorized Hacks . | . . . Terminals . | . . . Fabricators . | . . . Repair Stations . | . . . Recycling Units . | . . . Scanalyzers . | . . . Garrison Access . | . . . Data Cores Recovered . | . . . Used . | . . . Hacking Detections 3 | . 3 . Full Trace Events . | . . . Feedback Events . | . . . Feedback Blocked . | . . . Robot Schematics Acquired . | . . . Robots Built . | . . . Authchips . | . . . Time . | . . . Total Robot Build Rating . | . . . Part Schematics Acquired . | . . . Parts Built . | . . . Authchips . | . . . Time . | . . . Total Part Build Rating . | . . . Parts Repaired . | . . . Time . | . . . Parts Recycled . | . . . Recycled Matter . | . . . Retrieved Matter . | . . . Retrieved Components . | . . . Parts Scanalyzed . | . . . Part Schematics Acquired . | . . . Parts Damaged . | . . . Bothacking | -11 -10 -10 ------------ Run | Yrd Mat Min Used RIF Installer . | . . . Robots Hacked . | . . . Non-combat . | . . . Combat . | . . . Robot Hacks Applied . | . . . Relay Couplers Released . | . . . Fabnet Peak Effective % . | . . . Robots Rewired . | . . . Allies Hacked . | . . . Hacks Repelled . | . . . Allies | -11 -10 -10 -------- Run | Yrd Mat Min Total Allies . | . . . Largest Group . | . . . Highest-Rated Group . | . . . Highest-Rated Ally . | . . . Total Orders . | . . . Ally Attacks . | . . . Total Damage . | . . . Kills . | . . . Allies Corrupted . | . . . Allies Melted . | . . . Intel | -11 -10 -10 ------- Run | Yrd Mat Min Robot Analysis Total . | . . . Derelict Logs Recovered . | . . . Drone Launches . | . . . Drone Recoveries . | . . . Exploration | -11 -10 -10 ------------- Run | Yrd Mat Min Turns Passed 1748 | 87 1453 208 Spaces Moved 1262 | 79 1056 127 Core 30 | 30 . . Treads . | . . . Legs . | . . . Wheels 1232 | 49 1056 127 Hover . | . . . Flight . | . . . Fastest Speed 50 | 50 80 135 Average Speed 117 | 68 118 135 Slowest Speed 195 | 80 135 195 Overloaded Moves . | . . . Propulsion Burnouts . | . . . Robots Hopped . | . . . Cave-ins Triggered . | . . . Exploration Rate (%) 46 | 6 93 39 Regions Visited 2 Branch Regions 1 Pre-discovered Areas . | . . . Known Exits Taken . | . . . Unknown Exits Taken 2 | 1 1 . Scrap Searched . | . . . Spaces Dug . | . . . Terrain Destroyed . | . . . Melee . | . . . Projectile . | . . . AOE . | . . . Terrain Rammed . | . . . Walls Destroyed . | . . . Machines Disabled . | . . . Actions | -11 -10 -10 --------- Run | Yrd Mat Min Total 1422 | 100 1177 145 Wait 36 | . 36 . Move 1260 | 78 1055 127 Hop . | . . . Pick Up 27 | 7 19 1 Fast Attach 1 | . 1 . Attach 17 | 7 6 4 Detach 3 | 2 1 . Swap 7 | . 7 . Drop 12 | . 12 . Fire 59 | 6 40 13 Melee . | . . . Ram . | . . . Kick . | . . . Crush . | . . . Escape Stasis . | . . . Rewire . | . . . Trap . | . . . Miscellaneous . | . . . Route ------- -11/Scrapyard -10/Materials (discovered 6 exits: [*Mat x3] / [*Min x2] / [*Sub]) -10/Mines History --------- Turn | Location | Event 2 | -11/Scrapyard | Met Revision 17 56 | -11/Scrapyard | Discovered new exit (range 8) 88 | -11/Scrapyard | Entered Materials 247 | -10/Materials | Discovered new exit (range 14) 304 | -10/Materials | Build established: Mutant 508 | -10/Materials | Discovered new exit (range 12) 525 | -10/Materials | Discovered new exit (range 15) 694 | -10/Materials | Discovered new exit (range 15) 748 | -10/Materials | Discovered new exit (range 15) 1315 | -10/Materials | Discovered new exit (range 9) 1541 | -10/Materials | Entered Mines 1548 | -10/Mines | Met a Derelict bent on vengeance 1587 | -10/Mines | Lost 5 parts (1p1n1u2w) 1724 | -10/Mines | Assembled infested the area 1744 | -10/Mines | Core integrity fell below 50% 1749 | -10/Mines | Destroyed by as-96860 with Assembled Blade Last Messages --------------- Sensor Array destroyed. Arm. Wheel destroyed. Ion Engine destroyed. Destroyed Flight Unit. Beam Rifle destroyed. S-10 Pest destroyed. Acquired 19 matter. Acquired 21 matter. Acquired Lgt. Ion Engine. K-01 Serf cleans the Laser Drill. K-01 Serf cleans the Core Extractor. ALERT: Infestation in the mines, dispatching Demolisher response squad. T-07 Excavator destroyed. Arm. Wheel destroyed. Lgt. Ion Engine destroyed. Knocked back. as-34493 suffers critical hit (Burn). Beam Rifle destroyed. [Achievement: First Step to Greatness] Map ----- +----------------------------------------------------+ | ??????????????????????????????????? | | ??????????????????????????????????? | | ??????????????????????????????????? | | ??????????????????????????????????? | | ??????????????????????????????????? | | ??????????????????????????????????? | | ??????????????????????????????????? | | ?????????????????????????? ?????? | | ?????????????????????????? "?????? | | ????? ##????????????????? #?????? | | ????? ????????????????? #?????? | | ???? ????????????????? #?????? | | ???? ????????????????? #?????? | | ???? """ ?????????????? #?????? | | ???? """ ?????????????#! #?????? | | ????? """?????????????##%*#?????? | | ????? ?????????????##!= #?????? | | ????? ????????????## ##????? | | ????? ???????####### ##???? | | ?????# #??????## #???? | | ?????# #??????# #???? | | ?????# #??????# ##??? | | ??#### #??????# ### a ##?? | | ??# #####?## ##?##a a #?? | | ??# ## ## ### #??##aa #? | | ??# ## #??#@a a #? | | ??# ## ##?# aaa ##? | | ??# ### ### ####??# #####?? | | #?# #?# #?#### ##?????## a##?????? | | #?# #?# #????####???????####??????? | | #?# #?# ?????????????????????????? | | ### #?###?????????????????????????? | | ## #?????????????????????????????? | | #?????????????????????????????? | | ####?????????????????????????????? | | ##????????????????????????????????? | | ??????????????????????????????????? | | ??????????????????????????????????? | | ??????????????????????????????????? | | ??????????????????????????????????? | | ??????????????????????????????????? | | ??????????????????????????????????? | | ??????????????????????????????????? | | ??????????????????????????????????? | | ??????????????????????????????????? | | ??????????????????????????????????? | | ??????????????????????????????????? | | ??????????????????????????????????? | | ??????????????????????????????????? | | ?????????????????????????????????? | +----------------------------------------------------+ Best States ------------- Heat Dissipation 25 Energy Generation 10 Energy Capacity 250 Matter Stores 300 Matter Capacity 300 Sight Range 18 Robot Scan Range 14 Terrain Scan Density 10 Evasion (%) 50 Item Schematics ----------------- None Robot Schematics ------------------ None Fabricated ------------ Nothing Alien Tech Used ----------------- None Achievements -------------- Crack Shot First Step to Greatness It's Just You Shopping List Uninvited Guest Challenges ------------ None Game ------ Seed SpreadAdvancedSpear Manual? 0 Play Time 00:24:44 Cumulative 0.7 hours Start 2024.04.04 @ 08:20:31 End 2024.04.04 @ 08:44:58 Sessions 1 Manual Loads 0 Difficulty Rogue Special Mode None Game No. 1 Rogue 1 Adventurer 0 Explorer 0 Win Type - Total 0 Types 0/0/0/0/0/0/0/0/0 Lore% 0 Gallery% 1 Achievement% 1 Wizard Run 0 Options --------- Layout 1 ASCII 0 Keyboard 0 Movement Mouse Keybinds 0 Fullscreen 2 Font 24/Smallcaps Map View 50x35 Zoom Use 0% Tactical HUD 0 Map Filters NONE Filters NONE Steam 1 RUN: f6c41429-35e0-4114-becb-24f71730667f